[Event "*** SCC Grand Prix: Titled Tuesday Blitz"]
[Site "Chess.com"]
[Date "2020.08.25"]
[Round "2"]
[White "DenLaz"]
[Black "MichailovM"]
[Result "0-1"]
[WhiteElo "2703"]
[BlackElo "2493"]
[TimeControl "180+1"]
[EndTime "10:20:27 PDT"]
[Termination "MichailovM won on time"]

1. d4 {[%clk 0:03:00.9]} 1... Nf6 {[%clk 0:02:59.9]} 2. c4 {[%clk 0:03:00.4]}
2... g6 {[%clk 0:03:00.1]} 3. Nc3 {[%clk 0:03:00]} 3... Bg7 {[%clk 0:02:59.7]}
4. e4 {[%clk 0:02:59.9]} 4... d6 {[%clk 0:03:00.1]} 5. Be2 {[%clk 0:03:00.1]}
5... O-O {[%clk 0:03:00.2]} 6. Be3 {[%clk 0:03:00.7]} 6... c5 {[%clk 0:02:53.9]}
7. d5 {[%clk 0:02:59.7]} 7... b5 {[%clk 0:02:54.1]} 8. cxb5 {[%clk 0:02:54.8]}
8... a6 {[%clk 0:02:54.2]} 9. bxa6 {[%clk 0:02:44.4]} 9... Bxa6 {[%clk
0:02:53.1]} 10. Nf3 {[%clk 0:02:40.1]} 10... Qa5 {[%clk 0:02:44.2]} 11. O-O
{[%clk 0:02:38.3]} 11... Nbd7 {[%clk 0:02:43.9]} 12. Bxa6 {[%clk 0:02:26.8]}
12... Rxa6 {[%clk 0:02:41.3]} 13. Nd2 {[%clk 0:02:26.7]} 13... Ne5 {[%clk
0:02:27.9]} 14. h3 {[%clk 0:02:24.1]} 14... Qb4 {[%clk 0:02:19.6]} 15. Qc2
{[%clk 0:02:09.9]} 15... Rb8 {[%clk 0:02:12.3]} 16. Rab1 {[%clk 0:02:07.4]}
16... Nc4 {[%clk 0:01:50.5]} 17. Nxc4 {[%clk 0:02:00.6]} 17... Qxc4 {[%clk
0:01:51.4]} 18. b3 {[%clk 0:01:59.9]} 18... Qb4 {[%clk 0:01:51.6]} 19. a4 {[%clk
0:01:35.4]} 19... Raa8 {[%clk 0:01:31.6]} 20. Bd2 {[%clk 0:01:26]} 20... Rc8
{[%clk 0:01:15]} 21. e5 {[%clk 0:00:43]} 21... dxe5 {[%clk 0:01:06.4]} 22. Rfe1
{[%clk 0:00:38]} 22... Ne8 {[%clk 0:00:57.3]} 23. Ne4 {[%clk 0:00:26.1]} 23...
Qd4 {[%clk 0:00:34.7]} 24. Be3 {[%clk 0:00:12]} 24... Qxd5 {[%clk 0:00:34.9]}
25. Rbd1 {[%clk 0:00:12]} 25... Qc6 {[%clk 0:00:33.3]} 26. Nxc5 {[%clk
0:00:11.4]} 26... Nd6 {[%clk 0:00:31.1]} 27. Qe2 {[%clk 0:00:10.7]} 27... Rcb8
{[%clk 0:00:23.6]} 28. Rc1 {[%clk 0:00:08.1]} 28... Qe8 {[%clk 0:00:15.4]} 29.
Red1 {[%clk 0:00:08.4]} 29... Nf5 {[%clk 0:00:12.9]} 30. Qc4 {[%clk 0:00:05.8]}
30... Nd4 {[%clk 0:00:11.7]} 31. Bxd4 {[%clk 0:00:05.3]} 31... exd4 {[%clk
0:00:12.6]} 32. b4 {[%clk 0:00:06.2]} 32... e5 {[%clk 0:00:11.1]} 33. b5 {[%clk
0:00:04.1]} 33... Rc8 {[%clk 0:00:09.1]} 34. Qd5 {[%clk 0:00:04.1]} 34... Rd8
{[%clk 0:00:05]} 35. Qe4 {[%clk 0:00:04.4]} 35... f5 {[%clk 0:00:04.7]} 36. Qc2
{[%clk 0:00:03.3]} 36... e4 {[%clk 0:00:05.1]} 37. Qc4+ {[%clk 0:00:03.8]} 37...
Qf7 {[%clk 0:00:05.6]} 38. b6 {[%clk 0:00:03.4]} 38... Rdb8 {[%clk 0:00:03.4]}
39. Qxf7+ {[%clk 0:00:01.3]} 39... Kxf7 {[%clk 0:00:04.3]} 40. Rb1 {[%clk
0:00:02.2]} 40... Ra5 {[%clk 0:00:04.1]} 41. Nd7 {[%clk 0:00:02.6]} 41... Rb7
{[%clk 0:00:04.5]} 42. Rdc1 {[%clk 0:00:02.8]} 42... Rxd7 {[%clk 0:00:04.7]} 43.
b7 {[%clk 0:00:02.8]} 43... Be5 {[%clk 0:00:01.5]} 44. b8=Q {[%clk 0:00:02.5]}
44... Bxb8 {[%clk 0:00:02.1]} 45. Rxb8 {[%clk 0:00:02.8]} 45... d3 {[%clk
0:00:03]} 46. Rd1 {[%clk 0:00:03]} 46... Rxa4 {[%clk 0:00:03.6]} 47. Rb2 {[%clk
0:00:03.9]} 47... Rad4 {[%clk 0:00:04.4]} 48. Rbd2 {[%clk 0:00:04.4]} 48... R4d6
{[%clk 0:00:05.3]} 49. g3 {[%clk 0:00:03.8]} 49... Kf6 {[%clk 0:00:06.2]} 50.
Kg2 {[%clk 0:00:04.1]} 50... Ke5 {[%clk 0:00:07.1]} 51. Re1 {[%clk 0:00:04.8]}
51... g5 {[%clk 0:00:08]} 52. f3 {[%clk 0:00:04.2]} 52... Rd4 {[%clk 0:00:08.9]}
53. Kf2 {[%clk 0:00:04.3]} 53... Rc7 {[%clk 0:00:08.8]} 54. Ke3 {[%clk
0:00:02.6]} 54... Rc2 {[%clk 0:00:08.8]} 55. fxe4 {[%clk 0:00:02.7]} 55... fxe4
{[%clk 0:00:08.9]} 56. Rb1 {[%clk 0:00:02.1]} 56... Rdc4 {[%clk 0:00:09.2]} 57.
Rb5+ {[%clk 0:00:01.6]} 57... Kf6 {[%clk 0:00:09.7]} 0-1

[Event "*** SCC Grand Prix: Titled Tuesday Blitz"]
[Site "Chess.com"]
[Date "2020.08.25"]
[Round "2"]
[White "labdalla"]
[Black "pedromartinez91"]
[Result "0-1"]
[WhiteElo "2240"]
[BlackElo "2453"]
[TimeControl "180+1"]
[EndTime "10:20:27 PDT"]
[Termination "pedromartinez91 won by resignation"]

1. d4 {[%clk 0:03:00.9]} 1... d5 {[%clk 0:02:19]} 2. c4 {[%clk 0:03:00.7]} 2...
Nf6 {[%clk 0:02:11]} 3. Nf3 {[%clk 0:03:01.3]} 3... g6 {[%clk 0:02:09.5]} 4. Nc3
{[%clk 0:02:58.4]} 4... Bg7 {[%clk 0:02:09.4]} 5. Bg5 {[%clk 0:02:54.3]} 5...
O-O {[%clk 0:02:08.7]} 6. e3 {[%clk 0:02:44.4]} 6... c5 {[%clk 0:02:05.2]} 7.
Bxf6 {[%clk 0:02:35.6]} 7... Bxf6 {[%clk 0:01:55.4]} 8. cxd5 {[%clk 0:02:34.6]}
8... cxd4 {[%clk 0:01:52.8]} 9. Nxd4 {[%clk 0:02:30.7]} 9... Na6 {[%clk
0:01:48.1]} 10. Be2 {[%clk 0:02:22]} 10... Nc7 {[%clk 0:01:43.4]} 11. Bf3 {[%clk
0:02:20]} 11... Qd6 {[%clk 0:01:24.3]} 12. O-O {[%clk 0:02:17.6]} 12... Rd8
{[%clk 0:01:23.8]} 13. Rc1 {[%clk 0:02:06.3]} 13... Bd7 {[%clk 0:01:17.6]} 14.
Ne4 {[%clk 0:01:58.3]} 14... Qb6 {[%clk 0:01:14.3]} 15. Nxf6+ {[%clk 0:01:57.5]}
15... exf6 {[%clk 0:01:15.2]} 16. Qb3 {[%clk 0:01:52.8]} 16... Ne8 {[%clk
0:01:07]} 17. Qxb6 {[%clk 0:01:50.3]} 17... axb6 {[%clk 0:01:07.9]} 18. a3
{[%clk 0:01:50.9]} 18... f5 {[%clk 0:01:08.1]} 19. Rfd1 {[%clk 0:01:48.3]} 19...
Rac8 {[%clk 0:01:07.4]} 20. g3 {[%clk 0:01:42.9]} 20... Nd6 {[%clk 0:01:07.5]}
21. Kg2 {[%clk 0:01:41.1]} 21... Rc5 {[%clk 0:01:07.4]} 22. Rxc5 {[%clk
0:01:38.7]} 22... bxc5 {[%clk 0:01:08.3]} 23. Nb3 {[%clk 0:01:37.7]} 23... Ba4
{[%clk 0:01:07.3]} 24. Nxc5 {[%clk 0:01:31.4]} 24... Bxd1 {[%clk 0:01:07.2]} 25.
Bxd1 {[%clk 0:01:32.3]} 25... Rc8 {[%clk 0:00:57.8]} 26. Nd7 {[%clk 0:01:21.4]}
26... Rc1 {[%clk 0:00:55.8]} 27. Bf3 {[%clk 0:01:17.8]} 27... Rb1 {[%clk
0:00:53.5]} 28. b4 {[%clk 0:01:17.3]} 28... Rb3 {[%clk 0:00:53.6]} 29. h4 {[%clk
0:01:09.4]} 29... Rxa3 {[%clk 0:00:52.7]} 30. Nc5 {[%clk 0:01:06]} 30... Ra2
{[%clk 0:00:48.6]} 31. h5 {[%clk 0:01:04.7]} 31... Rb2 {[%clk 0:00:48.6]} 32.
Nd3 {[%clk 0:00:57.1]} 32... Rb3 {[%clk 0:00:48.6]} 33. Be2 {[%clk 0:00:55.6]}
33... Kf8 {[%clk 0:00:36.2]} 34. h6 {[%clk 0:00:55.3]} 34... Ne4 {[%clk
0:00:32.6]} 35. Nc5 {[%clk 0:00:46.4]} 35... Nxc5 {[%clk 0:00:26.6]} 36. bxc5
{[%clk 0:00:46.4]} 36... Rc3 {[%clk 0:00:27.2]} 37. c6 {[%clk 0:00:41.4]} 37...
bxc6 {[%clk 0:00:28.1]} 38. dxc6 {[%clk 0:00:42.2]} 38... Rxc6 {[%clk 0:00:29]}
39. Bf3 {[%clk 0:00:42.5]} 39... Rc1 {[%clk 0:00:28.9]} 40. Bd5 {[%clk
0:00:41.7]} 40... Ke7 {[%clk 0:00:28.4]} 41. Bb3 {[%clk 0:00:40.8]} 41... Rb1
{[%clk 0:00:27.7]} 42. Bc4 {[%clk 0:00:39.6]} 42... Rb6 {[%clk 0:00:28.1]} 43.
f4 {[%clk 0:00:38.1]} 43... Kf6 {[%clk 0:00:28.1]} 44. Kf3 {[%clk 0:00:36.8]}
44... Rb7 {[%clk 0:00:27.3]} 45. Bd5 {[%clk 0:00:30.8]} 45... Re7 {[%clk
0:00:24.6]} 46. e4 {[%clk 0:00:26.5]} 46... fxe4+ {[%clk 0:00:25.5]} 47. Bxe4
{[%clk 0:00:27]} 47... Ra7 {[%clk 0:00:25.7]} 48. g4 {[%clk 0:00:24.1]} 48...
Ra3+ {[%clk 0:00:23.9]} 49. Kf2 {[%clk 0:00:24.4]} 49... Rh3 {[%clk 0:00:19]}
50. g5+ {[%clk 0:00:20.4]} 50... Ke7 {[%clk 0:00:19.2]} 51. Bf3 {[%clk
0:00:19.7]} 51... f5 {[%clk 0:00:13.5]} 52. Kg2 {[%clk 0:00:17.3]} 52... Rxf3
{[%clk 0:00:09.6]} 53. Kxf3 {[%clk 0:00:17.4]} 53... Kd6 {[%clk 0:00:10.5]} 54.
Ke3 {[%clk 0:00:16.5]} 54... Kc5 {[%clk 0:00:10.7]} 55. Kd3 {[%clk 0:00:15.5]}
55... Kd5 {[%clk 0:00:11.1]} 56. Ke3 {[%clk 0:00:13.8]} 56... Kc4 {[%clk
0:00:11.3]} 57. Ke2 {[%clk 0:00:09.5]} 57... Kd4 {[%clk 0:00:11.6]} 58. Kf3
{[%clk 0:00:06.9]} 58... Kd3 {[%clk 0:00:12]} 59. Kf2 {[%clk 0:00:04.5]} 59...
Ke4 {[%clk 0:00:12.2]} 60. Kg3 {[%clk 0:00:03.4]} 60... Ke3 {[%clk 0:00:12.7]}
0-1

[Event "*** SCC Grand Prix: Titled Tuesday Blitz"]
[Site "Chess.com"]
[Date "2020.08.25"]
[Round "2"]
[White "BocharovD"]
[Black "SARGISMV"]
[Result "1-0"]
[WhiteElo "2688"]
[BlackElo "2462"]
[TimeControl "180+1"]
[EndTime "10:20:28 PDT"]
[Termination "BocharovD won by resignation"]

1. d4 {[%clk 0:03:00.9]} 1... Nf6 {[%clk 0:02:59.9]} 2. c4 {[%clk 0:03:00.7]}
2... c5 {[%clk 0:03:00.8]} 3. d5 {[%clk 0:03:00.4]} 3... e6 {[%clk 0:03:00.5]}
4. Nc3 {[%clk 0:02:58.9]} 4... exd5 {[%clk 0:03:01.3]} 5. cxd5 {[%clk
0:02:59.8]} 5... d6 {[%clk 0:03:01.5]} 6. Nf3 {[%clk 0:02:59.7]} 6... a6 {[%clk
0:03:01.9]} 7. a4 {[%clk 0:02:59.3]} 7... g6 {[%clk 0:03:02.3]} 8. Bf4 {[%clk
0:02:59]} 8... Bg7 {[%clk 0:03:02.9]} 9. e3 {[%clk 0:02:57.1]} 9... O-O {[%clk
0:03:03.1]} 10. Be2 {[%clk 0:02:57.3]} 10... Re8 {[%clk 0:03:02.2]} 11. Nd2
{[%clk 0:02:56.1]} 11... Nbd7 {[%clk 0:02:14.7]} 12. Nc4 {[%clk 0:02:33.8]}
12... Ne5 {[%clk 0:02:12.5]} 13. Bxe5 {[%clk 0:02:19.4]} 13... dxe5 {[%clk
0:02:13.4]} 14. a5 {[%clk 0:02:18.6]} 14... e4 {[%clk 0:02:11.2]} 15. O-O {[%clk
0:02:18]} 15... Bf5 {[%clk 0:02:02.2]} 16. Qb3 {[%clk 0:02:16.7]} 16... Rb8
{[%clk 0:01:56.5]} 17. Rfd1 {[%clk 0:02:15.6]} 17... h5 {[%clk 0:01:52.3]} 18.
Na4 {[%clk 0:02:12.7]} 18... Nd7 {[%clk 0:01:48.2]} 19. Rac1 {[%clk 0:02:02.5]}
19... Qg5 {[%clk 0:01:44.4]} 20. Nd6 {[%clk 0:01:58.5]} 20... Bh3 {[%clk
0:01:39.3]} 21. g3 {[%clk 0:01:58.5]} 21... Re5 {[%clk 0:01:36.8]} 22. Nxc5
{[%clk 0:01:51.7]} 22... Bf8 {[%clk 0:01:18.9]} 23. Nxd7 {[%clk 0:01:18.1]}
23... Bxd7 {[%clk 0:01:19.8]} 24. Rc7 {[%clk 0:01:17.6]} 24... Bxd6 {[%clk
0:00:57]} 25. Rxd7 {[%clk 0:01:13]} 25... Rd8 {[%clk 0:00:49.9]} 26. Rxd8+
{[%clk 0:01:06.4]} 26... Qxd8 {[%clk 0:00:49.5]} 27. Qxb7 {[%clk 0:01:04.6]}
27... h4 {[%clk 0:00:45.4]} 28. b4 {[%clk 0:00:58.7]} 28... hxg3 {[%clk
0:00:41.2]} 29. hxg3 {[%clk 0:00:59.6]} 29... Rf5 {[%clk 0:00:37.1]} 30. Qb6
{[%clk 0:00:43.6]} 30... Qf6 {[%clk 0:00:33.2]} 31. Rf1 {[%clk 0:00:41.6]} 31...
Rxd5 {[%clk 0:00:28]} 32. b5 {[%clk 0:00:37.4]} 32... Qg5 {[%clk 0:00:23.3]} 33.
Kg2 {[%clk 0:00:27]} 33... Rd2 {[%clk 0:00:20.6]} 34. Re1 {[%clk 0:00:25.6]}
34... axb5 {[%clk 0:00:18.4]} 35. a6 {[%clk 0:00:25.4]} 35... Bc5 {[%clk
0:00:18.6]} 36. Qb8+ {[%clk 0:00:20.9]} 36... Kg7 {[%clk 0:00:17.2]} 37. a7
{[%clk 0:00:21.4]} 37... Bxa7 {[%clk 0:00:14.2]} 38. Qxa7 {[%clk 0:00:21.3]}
38... Qf5 {[%clk 0:00:14.6]} 39. Kg1 {[%clk 0:00:17.2]} 39... b4 {[%clk
0:00:13.6]} 40. Qb6 {[%clk 0:00:15.4]} 40... Rb2 {[%clk 0:00:12]} 41. Qd4+
{[%clk 0:00:14.8]} 41... Qf6 {[%clk 0:00:12.3]} 42. Qxf6+ {[%clk 0:00:15]} 42...
Kxf6 {[%clk 0:00:13.2]} 43. Bc4 {[%clk 0:00:14.9]} 43... Ke5 {[%clk 0:00:13.4]}
44. Bxf7 {[%clk 0:00:14.1]} 44... g5 {[%clk 0:00:13.8]} 45. Ra1 {[%clk
0:00:13.4]} 45... Kd6 {[%clk 0:00:13.2]} 46. Ra5 {[%clk 0:00:12.9]} 46... Rb1+
{[%clk 0:00:12.2]} 47. Kg2 {[%clk 0:00:12.5]} 47... b3 {[%clk 0:00:13.1]} 48.
Bxb3 {[%clk 0:00:12]} 48... Rxb3 {[%clk 0:00:12.4]} 49. Rxg5 {[%clk 0:00:12.5]}
49... Rb4 {[%clk 0:00:12.7]} 50. Rf5 {[%clk 0:00:12.1]} 50... Ke6 {[%clk
0:00:12.8]} 51. g4 {[%clk 0:00:12.5]} 51... Rb8 {[%clk 0:00:08.9]} 52. Kg3
{[%clk 0:00:12.6]} 52... Rh8 {[%clk 0:00:07.2]} 53. Kf4 {[%clk 0:00:11.6]} 53...
Rh4 {[%clk 0:00:06.9]} 54. Rh5 {[%clk 0:00:10.9]} 54... Rxh5 {[%clk 0:00:04.6]}
55. gxh5 {[%clk 0:00:10]} 55... Kf6 {[%clk 0:00:05.5]} 56. Kxe4 {[%clk
0:00:09.3]} 56... Kg7 {[%clk 0:00:06.4]} 57. Kd5 {[%clk 0:00:09.6]} 57... Kh6
{[%clk 0:00:07.3]} 58. e4 {[%clk 0:00:10.1]} 1-0

[Event "*** SCC Grand Prix: Titled Tuesday Blitz"]
[Site "Chess.com"]
[Date "2020.08.25"]
[Round "2"]
[White "MestreSoares"]
[Black "MasterKroket"]
[Result "0-1"]
[WhiteElo "2120"]
[BlackElo "2403"]
[TimeControl "180+1"]
[EndTime "10:20:29 PDT"]
[Termination "MasterKroket won by resignation"]

1. Nf3 {[%clk 0:03:00.9]} 1... Nf6 {[%clk 0:02:59.7]} 2. b3 {[%clk 0:03:00.2]}
2... d6 {[%clk 0:02:59]} 3. Bb2 {[%clk 0:02:59.9]} 3... e5 {[%clk 0:02:59.4]} 4.
e3 {[%clk 0:02:59.8]} 4... Be7 {[%clk 0:02:58.8]} 5. d4 {[%clk 0:03:00.2]} 5...
e4 {[%clk 0:02:57.7]} 6. Nfd2 {[%clk 0:03:00.2]} 6... O-O {[%clk 0:02:57]} 7. c4
{[%clk 0:03:00.2]} 7... c6 {[%clk 0:02:55.6]} 8. Nc3 {[%clk 0:03:00.5]} 8... d5
{[%clk 0:02:55.6]} 9. cxd5 {[%clk 0:03:00.5]} 9... cxd5 {[%clk 0:02:55.6]} 10.
Be2 {[%clk 0:03:00.9]} 10... Nc6 {[%clk 0:02:51.8]} 11. O-O {[%clk 0:03:00.9]}
11... Bf5 {[%clk 0:02:45.6]} 12. Rc1 {[%clk 0:02:57.3]} 12... Rc8 {[%clk
0:02:41]} 13. f3 {[%clk 0:02:48.6]} 13... exf3 {[%clk 0:02:39.8]} 14. Bxf3
{[%clk 0:02:48.9]} 14... Bg6 {[%clk 0:02:40.3]} 15. Ndb1 {[%clk 0:02:42]} 15...
Re8 {[%clk 0:02:39.1]} 16. Re1 {[%clk 0:02:40.8]} 16... Bd6 {[%clk 0:02:30.1]}
17. Ne2 {[%clk 0:02:37.6]} 17... Ne4 {[%clk 0:02:27.6]} 18. Nbc3 {[%clk
0:02:33.2]} 18... Bb4 {[%clk 0:02:20.4]} 19. a3 {[%clk 0:02:23.4]} 19... Ba5
{[%clk 0:02:20.5]} 20. b4 {[%clk 0:02:22.2]} 20... Bc7 {[%clk 0:02:20.6]} 21.
Nxe4 {[%clk 0:02:17.1]} 21... dxe4 {[%clk 0:02:20]} 22. Bg4 {[%clk 0:02:16]}
22... f5 {[%clk 0:02:07.9]} 23. Bh3 {[%clk 0:02:14.9]} 23... Qg5 {[%clk
0:02:04.7]} 24. Qd2 {[%clk 0:02:07.9]} 24... Rcd8 {[%clk 0:02:02.7]} 25. g3
{[%clk 0:02:05.2]} 25... Bb8 {[%clk 0:01:54.3]} 26. Bg2 {[%clk 0:02:04.7]} 26...
Ne7 {[%clk 0:01:51.9]} 27. Nf4 {[%clk 0:02:02.7]} 27... Nd5 {[%clk 0:01:49]} 28.
Rc5 {[%clk 0:01:51.9]} 28... Bf7 {[%clk 0:01:48.4]} 29. Nxd5 {[%clk 0:01:45.8]}
29... Rxd5 {[%clk 0:01:44.9]} 30. Qf2 {[%clk 0:01:44]} 30... Bd6 {[%clk
0:01:39.4]} 31. Rxd5 {[%clk 0:01:39.8]} 31... Bxd5 {[%clk 0:01:40.3]} 32. Rc1
{[%clk 0:01:39.7]} 32... h5 {[%clk 0:01:32.5]} 33. Kh1 {[%clk 0:01:33.8]} 33...
Kh7 {[%clk 0:01:27.1]} 34. Bh3 {[%clk 0:01:24.4]} 34... Rf8 {[%clk 0:01:24.9]}
35. Rc8 {[%clk 0:01:17.7]} 35... Rf6 {[%clk 0:01:16.3]} 36. Rd8 {[%clk
0:01:04.5]} 36... g6 {[%clk 0:01:08.3]} 37. Rd7+ {[%clk 0:01:04.1]} 37... Kh6
{[%clk 0:01:08.8]} 38. Bc1 {[%clk 0:01:03.3]} 38... Bc6 {[%clk 0:01:02.5]} 39.
Rd8 {[%clk 0:00:57.5]} 39... Bc7 {[%clk 0:00:57]} 40. Rc8 {[%clk 0:00:54.4]}
40... Rf7 {[%clk 0:00:55.1]} 41. Bd2 {[%clk 0:00:50.1]} 41... Bd5 {[%clk
0:00:55.1]} 42. b5 {[%clk 0:00:48.3]} 42... Bd6 {[%clk 0:00:52.2]} 43. a4 {[%clk
0:00:47.3]} 43... Be6 {[%clk 0:00:49.2]} 44. Ra8 {[%clk 0:00:45.3]} 44... b6
{[%clk 0:00:47.5]} 45. Bf1 {[%clk 0:00:43.9]} 45... Bb3 {[%clk 0:00:41.9]} 46.
a5 {[%clk 0:00:42.5]} 46... bxa5 {[%clk 0:00:40.1]} 47. Bxa5 {[%clk 0:00:41.9]}
47... Bd1 {[%clk 0:00:36.4]} 48. Be2 {[%clk 0:00:40.9]} 48... Bxe2 {[%clk
0:00:34.6]} 49. Qxe2 {[%clk 0:00:41.1]} 49... h4 {[%clk 0:00:34.9]} 50. gxh4
{[%clk 0:00:38.8]} 50... Qe7 {[%clk 0:00:30.1]} 51. Be1 {[%clk 0:00:36]} 51...
Qb7 {[%clk 0:00:29]} 52. Rd8 {[%clk 0:00:32]} 52... Qc7 {[%clk 0:00:28.4]} 53.
Ra8 {[%clk 0:00:30.7]} 53... Qc1 {[%clk 0:00:26.9]} 54. Rd8 {[%clk 0:00:28.6]}
54... Bb4 {[%clk 0:00:26.7]} 55. Kg2 {[%clk 0:00:21.7]} 55... Qxe1 {[%clk
0:00:25.1]} 56. Qxe1 {[%clk 0:00:20.6]} 56... Bxe1 {[%clk 0:00:26]} 57. h5
{[%clk 0:00:20.6]} 57... gxh5 {[%clk 0:00:25.9]} 58. Rd6+ {[%clk 0:00:18.4]}
58... Kg5 {[%clk 0:00:24.6]} 59. b6 {[%clk 0:00:18.1]} 59... axb6 {[%clk
0:00:24.3]} 60. Rxb6 {[%clk 0:00:17.9]} 60... h4 {[%clk 0:00:24.8]} 61. Kf1
{[%clk 0:00:17]} 61... Bc3 {[%clk 0:00:20.9]} 62. h3 {[%clk 0:00:16.9]} 62... f4
{[%clk 0:00:19.8]} 63. Rb5+ {[%clk 0:00:12.2]} 63... Rf5 {[%clk 0:00:20.2]} 64.
Rb3 {[%clk 0:00:10.7]} 64... fxe3+ {[%clk 0:00:19.8]} 65. Ke2 {[%clk 0:00:10.8]}
65... Bxd4 {[%clk 0:00:20.5]} 66. Rb8 {[%clk 0:00:10.2]} 66... Rf2+ {[%clk
0:00:21.1]} 67. Ke1 {[%clk 0:00:10]} 67... Bc3+ {[%clk 0:00:20.9]} 68. Kd1
{[%clk 0:00:09]} 68... e2+ {[%clk 0:00:21.5]} 0-1

[Event "*** SCC Grand Prix: Titled Tuesday Blitz"]
[Site "Chess.com"]
[Date "2020.08.25"]
[Round "2"]
[White "Natalya_Buksa"]
[Black "serena-maria"]
[Result "0-1"]
[WhiteElo "2486"]
[BlackElo "2287"]
[TimeControl "180+1"]
[EndTime "10:20:30 PDT"]
[Termination "serena-maria won by checkmate"]

1. d4 {[%clk 0:03:00.9]} 1... Nf6 {[%clk 0:03:00.2]} 2. Nc3 {[%clk 0:03:00.9]}
2... d5 {[%clk 0:03:00.1]} 3. Bf4 {[%clk 0:03:00.2]} 3... g6 {[%clk 0:02:56.4]}
4. e3 {[%clk 0:02:59.8]} 4... Bg7 {[%clk 0:02:50.8]} 5. Nf3 {[%clk 0:02:59.9]}
5... c5 {[%clk 0:02:47.4]} 6. h4 {[%clk 0:02:59.3]} 6... h6 {[%clk 0:02:41.1]}
7. dxc5 {[%clk 0:02:47.5]} 7... Qa5 {[%clk 0:02:32]} 8. Bb5+ {[%clk 0:02:43.7]}
8... Nc6 {[%clk 0:02:31]} 9. O-O {[%clk 0:02:35.3]} 9... O-O {[%clk 0:02:23.1]}
10. a4 {[%clk 0:02:35.3]} 10... a6 {[%clk 0:02:19.7]} 11. Be2 {[%clk 0:02:33.4]}
11... Qxc5 {[%clk 0:02:18.3]} 12. Ne5 {[%clk 0:02:31.3]} 12... Bf5 {[%clk
0:02:10.2]} 13. Bd3 {[%clk 0:02:09.4]} 13... Ne4 {[%clk 0:01:48.9]} 14. Bxe4
{[%clk 0:01:30.3]} 14... Bxe4 {[%clk 0:01:32.2]} 15. Nd7 {[%clk 0:01:27.1]}
15... Qc4 {[%clk 0:00:42.8]} 16. Nxf8 {[%clk 0:01:26.7]} 16... e5 {[%clk
0:00:36.7]} 17. Bg3 {[%clk 0:01:20]} 17... Rxf8 {[%clk 0:00:34.9]} 18. Nxe4
{[%clk 0:01:19.3]} 18... dxe4 {[%clk 0:00:33.7]} 19. Qd7 {[%clk 0:01:15.7]}
19... f5 {[%clk 0:00:30.4]} 20. b3 {[%clk 0:01:11.1]} 20... Qe2 {[%clk
0:00:22.2]} 21. Qxb7 {[%clk 0:00:48.1]} 21... Rf6 {[%clk 0:00:13.4]} 22. Rfe1
{[%clk 0:00:41]} 22... Qg4 {[%clk 0:00:11.7]} 23. Qc8+ {[%clk 0:00:35.5]} 23...
Kh7 {[%clk 0:00:11]} 24. Rad1 {[%clk 0:00:32.3]} 24... Ne7 {[%clk 0:00:10.9]}
25. Qd7 {[%clk 0:00:31.2]} 25... Rf7 {[%clk 0:00:07.7]} 26. Qe6 {[%clk
0:00:29.4]} 26... Kg8 {[%clk 0:00:04.6]} 27. Rd7 {[%clk 0:00:29.4]} 27... Bf8
{[%clk 0:00:05.1]} 28. Bxe5 {[%clk 0:00:27]} 28... Qxh4 {[%clk 0:00:04.1]} 29.
Bg3 {[%clk 0:00:25.8]} 29... Qg5 {[%clk 0:00:04.2]} 30. Red1 {[%clk 0:00:22.1]}
30... h5 {[%clk 0:00:04.5]} 31. Bf4 {[%clk 0:00:21.5]} 31... Qg4 {[%clk
0:00:04.6]} 32. Rd8 {[%clk 0:00:21.6]} 32... h4 {[%clk 0:00:04.7]} 33. Kf1
{[%clk 0:00:10.5]} 33... h3 {[%clk 0:00:04.7]} 34. gxh3 {[%clk 0:00:10.9]} 34...
Qxh3+ {[%clk 0:00:04]} 35. Ke2 {[%clk 0:00:10.9]} 35... Qf3+ {[%clk 0:00:04.2]}
36. Ke1 {[%clk 0:00:11]} 36... Qh1+ {[%clk 0:00:04.5]} 37. Kd2 {[%clk
0:00:11.5]} 37... Qf3 {[%clk 0:00:05]} 38. Kc1 {[%clk 0:00:12]} 38... Qxf2
{[%clk 0:00:05.3]} 39. R8d2 {[%clk 0:00:12.6]} 39... Qf3 {[%clk 0:00:05.3]} 40.
Rg1 {[%clk 0:00:12.9]} 40... Qh5 {[%clk 0:00:05]} 41. Rh2 {[%clk 0:00:12]} 41...
Qf3 {[%clk 0:00:04.2]} 42. Kb2 {[%clk 0:00:10.6]} 42... Bg7+ {[%clk 0:00:04.6]}
43. Ka2 {[%clk 0:00:10.5]} 43... Kf8 {[%clk 0:00:02.2]} 44. Rd2 {[%clk
0:00:06.4]} 44... Kg8 {[%clk 0:00:01.7]} 45. Rd8+ {[%clk 0:00:06.9]} 45... Bf8
{[%clk 0:00:02.3]} 46. Rgd1 {[%clk 0:00:06.2]} 46... Qe2 {[%clk 0:00:02.7]} 47.
R1d2 {[%clk 0:00:06.5]} 47... Qe1 {[%clk 0:00:03]} 48. Qxa6 {[%clk 0:00:06.4]}
48... Qc1 {[%clk 0:00:03.1]} 49. Qc4 {[%clk 0:00:04.4]} 49... Kh7 {[%clk
0:00:03.6]} 50. Qxf7+ {[%clk 0:00:03.8]} 50... Bg7 {[%clk 0:00:04.2]} 51. Be5
{[%clk 0:00:02.8]} 51... Kh6 {[%clk 0:00:03.5]} 52. Qxg7+ {[%clk 0:00:03.2]}
52... Kg5 {[%clk 0:00:04.2]} 53. Qf6+ {[%clk 0:00:03.9]} 53... Kg4 {[%clk
0:00:04.3]} 54. Rg2+ {[%clk 0:00:04.5]} 54... Kf3 {[%clk 0:00:05.2]} 55. Rg3+
{[%clk 0:00:04.9]} 55... Ke2 {[%clk 0:00:04.7]} 56. Rc8 {[%clk 0:00:04.4]} 56...
Nd5 {[%clk 0:00:03.7]} 57. Qc6 {[%clk 0:00:04.2]} 57... Nb4# {[%clk 0:00:03.9]}
0-1